bitfinex/quotes_SOLUSD_20250219
["timestamp","ask_amount","ask_price","bid_price","bid_amount"]
[1739948158207,12.13755187,168.33,168.27,111.55485187]
[1739948158417,12.13755187,168.32,168.27,99.4173]
[1739948158607,12.13755187,168.31,168.27,99.4173]
[1739948159204,12.13755187,168.32,168.27,99.4173]
[1739948159604,12.13755187,168.31,168.27,12.5746]
[1739948159934,12.13755187,168.3,168.27,12.5746]
[1739948160127,12.13755187,168.3,168.27,7.7146]
[1739948160304,24.3025,168.37,168.25,0.063]
[1739948160305,12.13755187,168.28,168.25,0.063]
[1739948160501,12.13755187,168.27,168.25,0.063]
[1739948160705,19.46743463,168.28,168.25,0.063]
[1739948161315,19.46743463,168.29,168.25,0.063]
[1739948161536,19.46743463,168.28,168.25,0.063]
[1739948161832,19.46743463,168.29,168.25,0.063]
[1739948162029,19.46743463,168.28,168.25,0.063]
[1739948163130,19.46743463,168.31,168.25,0.063]
[1739948163311,19.46743463,168.31,168.25,19.53043463]
[1739948163809,19.46743463,168.31,168.25,0.063]
[1739948164129,19.46743463,168.31,168.25,6.0065]
[1739948164323,19.46743463,168.31,168.25,25.47393463]
[1739948165426,19.46743463,168.33,168.27,19.46743463]
[1739948165803,19.46743463,168.35,168.29,19.46743463]
[1739948166125,19.46743463,168.35,168.3,5.9417]
[1739948166338,19.46743463,168.37,168.31,19.46743463]
[1739948166638,19.46743463,168.41,168.35,19.46743463]
[1739948166947,19.46743463,168.4,168.34,19.46743463]
[1739948167137,19.46743463,168.41,168.35,19.46743463]
[1739948167431,0.03,168.42,168.36,19.46743463]
[1739948167735,0.03,168.42,168.38,19.46743463]
[1739948168104,0.03,168.42,168.37,19.46743463]
[1739948168430,0.03,168.42,168.38,25.40633463]
[1739948168632,0.03,168.42,168.37,100.36743463]
[1739948168798,19.46743463,168.41,168.37,80.9]
[1739948169000,19.46743463,168.4,168.34,5.9403]
[1739948169315,19.46743463,168.38,168.33,91.6806]
[1739948169829,19.46743463,168.39,168.33,111.14803463]
[1739948170014,19.46743463,168.41,168.34,19.46743463]
[1739948170339,19.49743463,168.42,168.36,25.40703463]
[1739948170837,19.46743463,168.41,168.36,5.9396]
[1739948171428,19.49743463,168.42,168.36,25.40703463]
[1739948171632,0.03,168.42,168.37,19.46743463]
[1739948172250,0.03,168.42,168.39,25.40563463]
[1739948172613,0.03,168.42,168.38,6.1448]
[1739948172818,0.03,168.42,168.38,12.0837]
[1739948173041,0.03,168.42,168.38,6.1448]
[1739948173240,0.03,168.42,168.38,12.0837]
[1739948174960,19.46743463,168.4,168.38,6.1448]
[1739948176349,19.46743463,168.39,168.33,12.0401]
[1739948176556,19.46743463,168.37,168.33,6.0997]
[1739948177051,19.46743463,168.38,168.33,12.0402]
[1739948177258,19.46743463,168.39,168.33,12.0402]
[1739948177762,19.46743463,168.4,168.34,19.46743463]
[1739948177964,0.03,168.42,168.35,19.46743463]
[1739948178266,19.49743463,168.42,168.36,24.32743463]
[1739948178456,19.46743463,168.4,168.36,4.86]
[1739948178770,0.03,168.42,168.34,5.94]
[1739948178771,19.46743463,168.39,168.34,5.94]
[1739948179270,19.46743463,168.37,168.33,6.0997]
[1739948179750,19.46743463,168.35,168.31,1.6282]
[1739948179945,19.46743463,168.34,168.31,1.6282]
[1739948180467,19.46743463,168.39,168.28,6.5999]
[1739948180468,19.46743463,168.33,168.28,6.5999]
[1739948181543,19.46743463,168.33,168.28,12.5423]
[1739948181865,19.46743463,168.32,168.28,6.5999]
[1739948182769,19.46743463,168.31,168.26,5.9428]
[1739948182969,19.46743463,168.29,168.25,138.363]
[1739948183272,19.46743463,168.28,168.25,0.063]
[1739948185441,19.46743463,168.29,168.25,0.063]
[1739948185767,19.46743463,168.34,168.27,19.46743463]
[1739948186871,19.46743463,168.34,168.28,25.40983463]
[1739948187745,19.46743463,168.36,168.3,19.46743463]
[1739948188139,19.46743463,168.37,168.31,19.46743463]
[1739948188567,0.03,168.42,168.34,19.46743463]
[1739948188770,19.46743463,168.41,168.35,19.46743463]
[1739948188974,19.46743463,168.4,168.34,86.8402]
[1739948189442,19.49743463,168.42,168.36,19.46743463]
[1739948189862,19.46743463,168.41,168.35,19.46743463]
[1739948190364,19.46743463,168.4,168.34,106.30763463]
[1739948190677,19.46743463,168.41,168.35,19.46743463]
[1739948190880,19.46743463,168.41,168.36,5.9396]
[1739948192281,19.49743463,168.42,168.36,5.9396]
[1739948192847,0.03,168.42,168.36,25.40703463]
[1739948193067,0.03,168.42,168.37,19.46743463]
[1739948193282,19.49743463,168.42,168.36,5.9396]
[1739948194288,19.46743463,168.41,168.36,5.9396]
[1739948194579,19.46743463,168.41,168.35,25.40733463]
[1739948195386,19.49743463,168.42,168.35,25.40733463]
[1739948196189,19.46743463,168.41,168.35,25.40733463]
[1739948196482,19.49743463,168.42,168.35,25.40733463]
[1739948197275,19.49743463,168.42,168.36,19.46743463]
[1739948197458,0.03,168.42,168.36,19.46743463]
[1739948198379,0.03,168.42,168.36,100.36743463]
[1739948198767,0.03,168.42,168.37,5.9393]
[1739948199560,19.49743463,168.42,168.37,5.9393]
[1739948199878,19.46743463,168.41,168.36,86.8395]
[1739948202673,12.14696158,168.41,168.36,86.8395]
[1739948202995,12.17696158,168.42,168.36,86.8395]
[1739948205000,12.14696158,168.41,168.36,80.9]
[1739948205290,12.14696158,168.4,168.36,80.9]
[1739948206392,12.14696158,168.4,168.36,86.8394]
[1739948206774,12.14696158,168.4,168.36,80.9]
[1739948208096,12.14696158,168.4,168.36,86.8395]
[1739948209117,12.14696158,168.39,168.36,80.9]
[1739948210015,12.14696158,168.38,168.33,13.5777]
[1739948210198,12.14696158,168.37,168.33,7.6372]
[1739948210809,12.14696158,168.36,168.33,6.1293]
[1739948211510,12.14696158,168.34,168.32,0.063]
[1739948212303,12.14696158,168.33,168.32,0.063]
[1739948212703,18.08766158,168.33,168.32,0.063]
[1739948213585,18.08766158,168.33,168.26,1.5363]
[1739948213804,12.14696158,168.28,168.26,1.5363]
[1739948214096,12.14696158,168.3,168.26,7.4794]
[1739948214314,4.8,168.36,168.27,12.14696158]
[1739948214532,12.14696158,168.34,168.29,5.9421]
[1739948215017,5.9393,168.37,168.29,5.9421]
[1739948215228,12.14696158,168.34,168.29,5.9421]
[1739948218232,12.14696158,168.35,168.29,18.08906158]
[1739948218442,12.14696158,168.35,168.29,18.15206158]
[1739948219347,12.14696158,168.34,168.29,6.0051]
[1739948220523,12.14696158,168.33,168.29,6.0051]
[1739948220734,12.14696158,168.31,168.29,0.063]
[1739948227858,12.14696158,168.3,168.29,0.063]
[1739948228360,12.14696158,168.31,168.29,0.063]
[1739948228664,12.14696158,168.32,168.29,0.063]
[1739948229654,12.14696158,168.31,168.29,0.063]
[1739948231746,12.17696158,168.32,168.29,0.063]
[1739948233854,12.14696158,168.31,168.29,0.063]
[1739948234735,7.78314379,168.31,168.29,0.063]
[1739948236462,0.03,168.32,168.29,0.063]
[1739948236758,7.81314379,168.32,168.29,0.063]
[1739948241663,0.03,168.32,168.29,0.063]
[1739948241869,0.03,168.32,168.29,27.84614379]
[1739948242855,0.03,168.32,168.31,7.78314379]
[1739948243039,0.03,168.4,168.34,20.0]
[1739948243246,7.78314379,168.37,168.31,82.5435]
[1739948243547,7.78314379,168.37,168.31,88.4847]
[1739948243749,7.78314379,168.36,168.31,88.4847]
[1739948244563,7.78314379,168.36,168.31,1.6435]
[1739948244760,7.78314379,168.35,168.31,1.6435]
[1739948244965,7.78314379,168.32,168.3,6.5245]
[1739948246265,7.78314379,168.31,168.29,0.063]
[1739948246449,7.78314379,168.3,168.29,0.063]
[1739948247769,13.72484379,168.3,168.29,0.063]
[1739948248570,18.10762848,168.3,168.29,0.063]
[1739948249676,12.16592848,168.3,168.29,0.063]
[1739948251584,18.10762848,168.3,168.29,0.063]
[1739948252975,12.16592848,168.3,168.29,0.063]
[1739948254479,0.03,168.32,168.29,0.063]
[1739948257581,0.03,168.32,168.3,7.6744]
[1739948257991,0.03,168.32,168.3,13.616]
[1739948261659,0.03,168.32,168.3,7.6744]
[1739948264798,12.19592848,168.32,168.3,6.0346]
[1739948264987,12.16592848,168.31,168.29,0.063]
[1739948265178,0.03,168.32,168.29,6.0049]
[1739948265491,0.03,168.32,168.29,18.17082848]
[1739948265894,0.03,168.32,168.29,6.0049]
[1739948266594,0.03,168.32,168.29,18.17082848]
[1739948266775,0.03,168.32,168.31,12.16592848]
[1739948267791,0.03,168.32,168.31,18.10732848]
[1739948268383,0.03,168.32,168.31,26.07952848]
[1739948268589,0.03,168.32,168.31,26.34814894]
[1739948268999,0.03,168.32,168.31,245.54814894]
[1739948270583,0.03,168.32,168.31,26.34814894]
[1739948270780,0.03,168.32,168.31,18.5736]
[1739948271582,0.03,168.32,168.31,12.6322]
[1739948272085,0.03,168.32,168.31,26.34814894]
[1739948276007,0.03,168.32,168.31,10.6014]
[1739948276205,0.03,168.32,168.31,18.37594894]
[1739948277403,0.03,168.32,168.31,10.6014]
[1739948277990,0.03,168.32,168.31,18.37594894]
[1739948278305,0.03,168.32,168.31,13.71594894]
[1739948279711,0.03,168.32,168.31,5.9414]
[1739948280087,0.03,168.32,168.31,13.71594894]
[1739948285145,0.03,168.32,168.31,94.61594894]
[1739948289014,0.03,168.32,168.31,94.67894894]
[1739948294609,0.0001,168.32,168.31,108.09079747]
[1739948296324,0.0001,168.32,168.31,246.39079747]
[1739948297633,0.03,168.4,168.31,255.60109747]
[1739948297934,0.03,168.4,168.39,7.77454894]
[1739948299932,0.03,168.4,168.39,13.71304894]
[1739948300815,0.03,168.4,168.39,114.52239747]
[1739948301822,0.03,168.4,168.39,252.82239747]
[1739948302009,0.0001,168.4,168.39,283.92059323]
[1739948302211,0.03,168.49,168.43,20.0]
[1739948302415,0.03,168.49,168.46,7.77454894]
[1739948304136,0.03,168.49,168.46,13.71034894]
[1739948304830,0.03,168.49,168.48,7.77454894]
[1739948306040,0.03,168.49,168.48,13.70994894]
[1739948309528,20.0,168.46,168.39,80.9]
[1739948309726,7.77454894,168.43,168.37,5.9393]
[1739948309955,1.6214,168.48,168.39,7.77454894]
[1739948310126,13.41184853,168.47,168.39,7.77454894]
[1739948310829,5.9361,168.46,168.39,7.77454894]
[1739948311524,7.77454894,168.47,168.39,7.77454894]
[1739948311756,7.77454894,168.47,168.4,7.77454894]
[1739948312448,7.77454894,168.46,168.39,7.77454894]
[1739948312751,13.41184853,168.47,168.36,230.5719]
[1739948312752,7.77454894,168.45,168.38,7.77454894]
[1739948312943,13.71124894,168.45,168.38,7.77454894]
[1739948313248,7.77454894,168.46,168.39,7.77454894]
[1739948314540,7.77454894,168.45,168.38,7.77454894]
[1739948315043,7.77454894,168.43,168.36,238.34644894]
[1739948315352,7.77454894,168.43,168.36,233.62644894]
[1739948315549,7.77454894,168.42,168.36,226.97454894]
[1739948315739,7.77454894,168.42,168.36,80.9]
[1739948316254,7.77454894,168.41,168.36,80.9]
[1739948316825,7.77454894,168.42,168.36,80.9]
[1739948317051,13.71234894,168.42,168.36,80.9]
[1739948319165,7.77454894,168.41,168.36,80.9]
[1739948319332,13.71234894,168.42,168.36,80.9]
[1739948320347,7.77454894,168.43,168.36,88.67454894]
[1739948321273,13.71184894,168.43,168.36,88.67454894]
[1739948321457,7.77454894,168.42,168.36,80.9]
[1739948322568,13.71214894,168.42,168.36,80.9]
[1739948323264,7.77454894,168.41,168.36,80.9]
[1739948323459,7.77454894,168.4,168.36,80.9]
[1739948323671,7.77454894,168.38,168.32,87.5209]
[1739948323864,7.77454894,168.37,168.32,87.5209]
[1739948324447,13.71384894,168.37,168.32,87.5209]
[1739948324648,13.71384894,168.37,168.32,80.9]
[1739948325558,13.71384894,168.37,168.32,80.963]
[1739948326068,7.77454894,168.37,168.32,80.963]
[1739948326245,13.71384894,168.37,168.32,80.963]
[1739948326445,7.77454894,168.36,168.32,80.963]
[1739948327046,7.77454894,168.37,168.32,80.963]
[1739948328273,7.77454894,168.37,168.32,86.904]
[1739948328451,7.77454894,168.37,168.32,80.963]
[1739948328452,13.71394894,168.37,168.32,80.963]
[1739948328988,13.71394894,168.37,168.32,0.063]
[1739948330081,7.77454894,168.37,168.32,0.063]
[1739948332201,82.7,168.4,168.34,7.77454894]
[1739948332377,82.7,168.4,168.35,7.77454894]
[1739948334588,82.7,168.4,168.36,5.9396]
[1739948334887,7.77454894,168.42,168.36,5.9396]
[1739948335181,7.77454894,168.41,168.36,5.9396]
[1739948335885,7.77454894,168.42,168.36,5.9396]
[1739948336094,0.03,168.43,168.37,7.77454894]
[1739948336274,0.03,168.43,168.39,27.77454894]
[1739948337071,0.03,168.43,168.39,108.67454894]
[1739948338189,0.03,168.43,168.4,5.9382]
[1739948338495,0.03,168.43,168.4,86.8382]
[1739948339357,0.03,168.43,168.4,94.61274894]
[1739948339788,0.03,168.43,168.41,7.77454894]
[1739948340001,0.03,168.43,168.42,5.9375]
[1739948340199,0.03,168.43,168.42,239.10524894]
[1739948340863,0.03,168.43,168.42,219.2]
[1739948341790,0.03,168.43,168.4,5.9381]
[1739948342097,0.03,168.43,168.39,100.9]
[1739948342291,7.77454894,168.42,168.37,231.4164]
[1739948342588,7.77454894,168.41,168.37,229.8192]
[1739948343496,7.77454894,168.42,168.37,229.8192]
[1739948344596,12.14620429,168.42,168.37,229.8192]
[1739948345795,12.14620429,168.42,168.37,85.58]
[1739948346008,12.14620429,168.39,168.37,80.9]
[1739948346177,12.14620429,168.38,168.34,80.9]
[1739948346494,12.14620429,168.37,168.32,86.9037]
[1739948347003,12.14620429,168.36,168.32,80.963]
[1739948347380,12.14620429,168.36,168.32,0.063]
[1739948347582,12.14620429,168.33,168.32,0.063]
[1739948348596,12.14620429,168.34,168.32,0.063]
[1739948350896,12.14620429,168.35,168.32,0.063]
[1739948353002,12.14620429,168.34,168.32,0.063]
[1739948355999,12.14620429,168.35,168.32,0.063]
[1739948356209,12.14620429,168.36,168.32,0.063]
[1739948357284,12.14620429,168.35,168.32,0.063]
[1739948357484,13.41184853,168.37,168.32,0.063]
[1739948357485,12.14620429,168.34,168.32,0.063]
[1739948358286,12.14620429,168.33,168.32,0.063]
[1739948358592,31.49875282,168.33,168.32,0.063]
[1739948359399,25.55805282,168.33,168.32,0.063]
[1739948359981,12.14620429,168.33,168.32,0.063]
[1739948360708,94.84620429,168.36,168.32,0.063]
[1739948361590,12.14620429,168.33,168.32,0.063]
[1739948361792,25.55805282,168.33,168.32,0.063]
[1739948363804,31.49875282,168.33,168.32,0.063]
[1739948366600,25.55805282,168.33,168.32,0.063]
[1739948367925,31.49875282,168.33,168.32,0.063]
[1739948369502,25.55805282,168.32,168.3,0.063]
[1739948369820,31.49945282,168.31,168.3,0.063]
[1739948370595,43.64565711,168.31,168.3,0.063]
[1739948371118,31.49945282,168.31,168.3,0.063]
[1739948373217,34.42216155,168.31,168.3,0.063]
[1739948376430,12.14620429,168.31,168.3,0.063]
[1739948376632,12.14620429,168.32,168.3,0.063]
[1739948377013,12.14620429,168.36,168.3,6.26]
[1739948377212,12.14620429,168.36,168.3,18.40620429]
[1739948378323,12.14620429,168.39,168.33,12.14620429]
[1739948379636,12.14620429,168.4,168.34,12.14620429]
[1739948379932,12.17620429,168.42,168.35,13.72720429]
[1739948380127,0.03,168.42,168.37,5.9393]
[1739948380433,0.03,168.42,168.37,18.08550429]
[1739948381308,12.14620429,168.41,168.36,10.7936]
[1739948382435,0.03,168.42,168.36,28.87930429]
[1739948382826,12.17620429,168.42,168.36,16.7331]
[1739948383042,12.14620429,168.39,168.36,10.7936]
[1739948383242,12.14620429,168.37,168.36,6.1336]
[1739948383739,12.14620429,168.37,168.32,10.7836]
[1739948384046,12.14620429,168.35,168.32,6.1436]
[1739948384241,12.14620429,168.34,168.32,6.1436]
[1739948384446,12.14620429,168.33,168.3,0.063]
[1739948384613,12.14620429,168.31,168.3,0.063]
[1739948384942,12.14620429,168.33,168.3,0.063]
[1739948386110,12.14620429,168.36,168.3,0.063]
[1739948386338,12.14620429,168.38,168.31,12.14620429]
[1739948386844,12.14620429,168.41,168.34,12.14620429]
[1739948387057,12.14620429,168.41,168.35,8.2562]
[1739948387349,12.17620429,168.42,168.35,20.40240429]
[1739948387519,0.03,168.42,168.37,12.14620429]
[1739948387718,12.14620429,168.4,168.36,4.66]
[1739948387930,12.14620429,168.39,168.35,8.2562]
[1739948388214,12.14620429,168.38,168.35,8.2562]
[1739948388419,12.14620429,168.36,168.35,6.6195]
[1739948388660,12.14620429,168.36,168.31,6.2266]
[1739948388828,12.14620429,168.35,168.31,6.2266]
[1739948389036,12.14620429,168.33,168.31,6.2266]
[1739948389260,12.14620429,168.32,168.31,6.2266]
[1739948389855,12.14620429,168.32,168.3,0.063]
[1739948390661,19.4572838,168.32,168.3,0.063]
[1739948392960,25.3983838,168.32,168.3,0.063]
[1739948393128,19.4572838,168.32,168.3,0.063]
[1739948394053,19.4572838,168.34,168.3,0.063]
[1739948394956,19.4572838,168.33,168.3,0.063]
[1739948395175,19.4572838,168.32,168.3,0.063]
[1739948396645,19.4572838,168.33,168.3,0.063]
[1739948400957,25.3979838,168.33,168.3,0.063]
[1739948401473,19.4572838,168.33,168.3,0.063]
[1739948402864,19.4572838,168.31,168.3,0.063]
[1739948403474,32.86913233,168.31,168.3,0.063]
[1739948404959,38.81053233,168.31,168.3,0.063]
[1739948405661,58.26781613,168.31,168.3,0.063]
[1739948405865,38.81053233,168.31,168.3,0.063]
[1739948406269,58.26781613,168.31,168.3,0.063]
[1739948406582,58.26781613,168.31,168.25,0.063]
[1739948406583,13.41184853,168.26,168.25,0.063]
[1739948406787,32.86913233,168.26,168.25,0.063]
[1739948407154,38.81223233,168.26,168.25,0.063]
[1739948407552,19.4572838,168.28,168.25,0.063]
[1739948407979,19.4572838,168.29,168.25,0.063]
[1739948408157,19.4572838,168.3,168.25,0.063]
[1739948408850,19.4572838,168.31,168.25,0.063]
[1739948409165,19.4872838,168.33,168.27,19.4572838]
[1739948409949,19.4572838,168.32,168.26,33.0524838]
[1739948410378,19.4572838,168.3,168.26,7.6521]
[1739948410675,19.4572838,168.27,168.26,6.0119]
[1739948410886,32.86913233,168.27,168.25,0.063]
[1739948411067,32.86913233,168.26,168.25,0.063]
[1739948413001,33.86913233,168.26,168.25,0.063]
[1739948413295,44.47223233,168.26,168.25,0.063]
[1739948414075,44.47223233,168.26,168.19,0.063]
[1739948414076,20.0,168.23,168.19,0.063]
[1739948414282,32.86913233,168.2,168.19,0.063]
[1739948415376,38.81443233,168.2,168.19,0.063]
[1739948415584,32.86913233,168.2,168.19,0.063]
[1739948416268,19.4572838,168.2,168.19,0.063]
[1739948417594,32.86913233,168.2,168.19,0.063]
[1739948417796,38.81443233,168.2,168.19,0.063]
[1739948418171,32.86913233,168.2,168.19,0.063]
[1739948418996,19.4572838,168.2,168.19,0.063]
[1739948420965,32.86913233,168.2,168.19,0.063]
[1739948421488,19.4572838,168.2,168.19,0.063]
[1739948423466,32.86913233,168.2,168.19,0.063]
[1739948423676,38.81443233,168.2,168.19,0.063]
[1739948424596,31.53863217,168.2,168.19,0.063]
[1739948424764,18.12678364,168.2,168.19,0.063]
[1739948424970,12.18148364,168.24,168.19,0.063]
[1739948425977,12.18148364,168.24,168.19,6.0086]
[1739948426185,5.9432,168.26,168.19,6.0086]
[1739948426186,1.5315,168.31,168.21,6.5842]
[1739948426379,0.03,168.33,168.26,20.0]
[1739948426582,19.484031,168.33,168.27,39.454031]
[1739948426908,19.484031,168.33,168.27,20.0]
[1739948427102,32.86587953,168.32,168.26,19.454031]
[1739948427467,19.454031,168.31,168.25,19.454031]
[1739948427699,19.454031,168.3,168.23,19.454031]
[1739948428196,19.454031,168.3,168.26,20.0]
[1739948428908,19.454031,168.28,168.22,5.9442]
[1739948429200,19.454031,168.27,168.22,5.9442]
[1739948429698,19.35364853,168.3,168.21,6.5842]
[1739948429699,19.454031,168.25,168.21,6.5842]
[1739948431894,5.9427,168.28,168.21,6.5842]
[1739948431895,19.454031,168.26,168.21,12.529]
[1739948432084,19.454031,168.27,168.21,12.529]
[1739948432395,19.454031,168.26,168.21,12.529]
[1739948434004,13.41184853,168.26,168.21,12.11670231]
[1739948434475,19.454031,168.27,168.21,31.57073331]
[1739948434681,19.454031,168.28,168.21,31.57073331]
[1739948434882,19.454031,168.28,168.22,19.454031]
[1739948435502,19.454031,168.29,168.22,19.454031]
[1739948435797,0.03,168.33,168.27,19.454031]
[1739948436001,0.03,168.33,168.28,20.995431]
[1739948436203,0.03,168.33,168.29,5.9421]
[1739948436504,19.454031,168.31,168.28,1.5414]
[1739948437478,0.03,168.33,168.28,7.4838]
[1739948437683,0.03,168.33,168.29,19.454031]
[1739948437910,0.03,168.33,168.31,39.454031]
[1739948438108,0.03,168.33,168.32,31.746831]
[1739948439117,0.03,168.33,168.32,12.2928]
[1739948439480,0.03,168.33,168.32,6.3518]
[1739948440385,0.03,168.33,168.32,12.2928]
[1739948440586,0.03,168.33,168.32,31.746831]
[1739948440799,0.03,168.33,168.32,12.2928]
[1739948442387,0.03,168.33,168.32,31.746831]
[1739948443889,19.454031,168.41,168.35,20.0]
[1739948444088,0.03,168.42,168.37,19.454031]
[1739948444520,0.03,168.42,168.38,25.392931]
[1739948445723,0.03,168.42,168.38,5.9389]
[1739948446801,0.03,168.42,168.36,20.972331]
[1739948447004,0.03,168.42,168.37,5.9392]
[1739948447703,0.03,168.42,168.37,25.393231]
[1739948447924,0.03,168.42,168.37,5.9392]
[1739948448105,19.484031,168.42,168.36,26.911931]
[1739948448630,25.58787618,168.42,168.36,19.60392765]
[1739948449036,0.03,168.42,168.37,12.14602765]
[1739948449843,0.03,168.42,168.38,12.14602765]
[1739948450618,0.03,168.42,168.4,18.08422765]
[1739948450839,0.03,168.42,168.4,5.9382]
[1739948451857,0.03,168.42,168.41,20.0]
[1739948453634,0.03,168.42,168.39,12.4306]
[1739948453831,0.03,168.42,168.39,6.4921]
[1739948455251,0.03,168.42,168.39,12.4305]
[1739948455459,0.03,168.42,168.41,20.0]
[1739948456343,0.03,168.42,168.41,32.14602765]
[1739948456839,0.0001,168.42,168.41,33.03646437]
[1739948457044,0.03,168.43,168.41,40.57556437]
[1739948457241,0.03,168.43,168.42,12.14602765]
[1739948458034,0.03,168.49,168.45,20.0]
[1739948458221,0.03,168.49,168.47,12.14602765]
[1739948459228,0.03,168.49,168.48,18.08142765]
[1739948459428,0.03,168.49,168.48,19.71192765]
[1739948459822,0.0001,168.5,168.48,31.8579553]
[1739948460021,0.0001,168.5,168.49,12.14602765]
[1739948460632,0.0001,168.5,168.49,19.39510518]
[1739948460832,0.03,168.52,168.51,20.0]
[1739948461031,0.03,168.52,168.51,39.39510518]
[1739948461345,0.03,168.52,168.51,45.32940518]
[1739948465934,0.03,168.59,168.52,6.3277]
[1739948466140,0.03,168.59,168.58,6.3277]
[1739948466141,0.0001,168.59,168.58,6.3277]
[1739948467941,0.0001,168.59,168.58,31.65470518]
[1739948468256,0.0001,168.59,168.58,12.2596]
[1739948468636,82.7,168.69,168.61,20.0]
[1739948468844,19.39510518,168.69,168.62,19.39510518]
[1739948469761,19.39510518,168.67,168.61,24.76]
[1739948469941,19.39510518,168.65,168.61,5.9305]
[1739948470462,82.7,168.7,168.64,19.39510518]
[1739948470753,2.39445213,168.76,168.7,6.2309]
[1739948470965,2.39445213,168.76,168.75,19.39510518]
[1739948471202,19.39510518,168.82,168.74,19.39510518]
[1739948471203,19.39510518,168.8,168.74,19.39510518]
[1739948471391,82.7,168.81,168.75,19.39510518]
[1739948471596,82.7,168.84,168.7,230.2709]
[1739948471902,19.39510518,168.82,168.73,20.0]
[1739948472102,19.39510518,168.82,168.75,19.39510518]
[1739948473090,19.39510518,168.82,168.76,19.39510518]
[1739948473795,82.7,168.83,168.76,19.39510518]
[1739948473976,102.09510518,168.83,168.77,19.39510518]
[1739948474669,82.7,168.83,168.77,19.39510518]
[1739948474869,102.09510518,168.83,168.77,19.39510518]
[1739948476397,19.39510518,168.82,168.75,19.39510518]
[1739948476589,19.39510518,168.8,168.74,25.32100518]
[1739948477280,19.39510518,168.81,168.74,25.32100518]
[1739948477479,19.39510518,168.8,168.74,25.32100518]
[1739948477687,19.39510518,168.81,168.74,25.32100518]
[1739948477876,19.39510518,168.8,168.73,45.32170518]
[1739948478077,19.39510518,168.79,168.73,19.39510518]
[1739948478383,19.39510518,168.77,168.7,6.2309]
[1739948478578,102.09510518,168.77,168.7,31.55360518]
[1739948478794,82.7,168.77,168.71,19.39510518]
[1739948478988,82.7,168.77,168.74,19.39510518]
[1739948479190,102.09510518,168.82,168.76,19.39510518]
[1739948479391,108.01850518,168.82,168.75,19.39510518]
[1739948479999,19.39510518,168.79,168.71,86.8273]
[1739948480184,96.11184853,168.81,168.71,19.39510518]
[1739948480392,19.39510518,168.78,168.72,19.39510518]
[1739948481708,19.39510518,168.77,168.71,25.32240518]
[1739948481878,5.9249,168.78,168.72,19.39510518]
[1739948481879,19.39510518,168.78,168.72,19.39510518]
[1739948482080,102.09510518,168.8,168.74,19.39510518]
[1739948482280,82.7,168.8,168.74,19.39510518]
[1739948482891,19.39510518,168.81,168.74,19.39510518]
[1739948483410,19.42510518,168.83,168.76,19.39510518]
[1739948483586,19.42510518,168.83,168.77,5.9252]
[1739948484403,19.42510518,168.83,168.76,80.9]
[1739948484404,19.39510518,168.82,168.76,80.9]
[1739948484604,19.39510518,168.8,168.76,80.9]
[1739948485121,19.39510518,168.82,168.76,86.8254]
[1739948485307,19.42510518,168.83,168.76,106.22050518]
[1739948486213,19.42510518,168.83,168.77,19.39510518]
[1739948486691,12.1175562,168.83,168.77,12.0875562]
[1739948487021,0.03,168.83,168.78,12.0875562]
[1739948487225,0.03,168.83,168.79,18.5884562]
[1739948488021,0.03,168.83,168.8,5.9241]
[1739948488206,0.03,168.83,168.82,12.0875562]
[1739948488395,0.03,168.83,168.8,229.9441]
[1739948488396,0.03,168.83,168.81,12.0875562]
[1739948488585,0.03,168.83,168.8,91.6441]
[1739948488985,0.03,168.83,168.8,103.7316562]
[1739948489420,0.03,168.83,168.81,12.0875562]
[1739948489631,0.03,168.83,168.8,91.6441]
[1739948490136,0.03,168.83,168.8,103.7316562]